[Event "FIDE Grand Swiss 2023"]
[Site "Villa Marina, Douglas, Isle of Man"]
[Date "2023.10.25"]
[Round "1.56"]
[White "Aravindh, Chithambaram Vr."]
[Black "Wu, Li"]
[Result "1-0"]
[WhiteElo "2649"]
[BlackElo "2303"]
[EventDate "2023.10.25"]
[ECO "A08"]
[PlyCount "107"]
[BlackFideId "411086"]
[TimeControl "40/100 + 20/50 + 15 + 30s/move"]
[WhiteFideId "5072786"]

1.Nf3 {[%clk 01:40:46] [%emt 00:00:13]} 1...d5 {[%clk 01:40:44] [%emt 00:00:18]} 
2.g3 {[%clk 01:41:05] [%emt 00:00:10]} 2...c5 {[%clk 01:40:44] [%emt 00:00:30]} 
3.Bg2 {[%clk 01:41:21] [%emt 00:00:13]} 3...Nf6 {[%clk 01:40:48] [%emt
00:00:27]} 4.O-O {[%clk 01:41:32] [%emt 00:00:18]} 4...Nc6 {[%clk 01:40:35]
[%emt 00:00:45]} 5.d4 {[%clk 01:41:39] [%emt 00:00:22]} 5...cxd4 {[%clk
01:39:47] [%emt 00:01:19]} 6.Nxd4 {[%clk 01:41:52] [%emt 00:00:16]} 6...e6 
{[%clk 01:39:04] [%emt 00:01:13]} 7.c4 {[%clk 01:41:35] [%emt 00:00:47]} 
7...Bc5 {[%clk 01:39:05] [%emt 00:00:29]} 8.Nb3 {[%clk 01:36:40] [%emt
00:05:24]} 8...Bb6 {[%clk 01:39:24] [%emt 00:00:12]} 9.cxd5 {[%clk 01:32:28]
[%emt 00:04:42]} 9...exd5 {[%clk 01:37:12] [%emt 00:02:42]} 10.Bg5 {[%clk
01:28:32] [%emt 00:04:25]} 10...d4 {[%clk 01:31:39] [%emt 00:06:04]} 11.a4 
{[%clk 01:28:48] [%emt 00:00:14]} 11...a5 {[%clk 01:28:39] [%emt 00:03:31]} 
12.N1d2 {[%clk 01:23:39] [%emt 00:05:37]} 12...h6 {[%clk 01:23:17] [%emt
00:05:54]} 13.Bxf6 {[%clk 01:23:53] [%emt 00:00:14]} 13...Qxf6 {[%clk 01:23:44]
[%emt 00:00:04]} 14.Nc1 {[%clk 01:20:16] [%emt 00:04:07]} 14...O-O {[%clk
01:22:50] [%emt 00:01:24]} 15.Nd3 {[%clk 01:20:26] [%emt 00:00:20]} 15...h5 
{[%clk 01:08:35] [%emt 00:14:46]} 16.Rc1 {[%clk 01:08:11] [%emt 00:12:45]} 
16...Re8 {[%clk 01:04:55] [%emt 00:04:09]} 17.Qb3 {[%clk 00:57:47] [%emt
00:10:53]} 17...Ra6 {[%clk 01:00:21] [%emt 00:05:05]} 18.Qb5 {[%clk 00:45:32]
[%emt 00:12:45]} 18...Ba7 {[%clk 00:53:17] [%emt 00:07:34]} 19.Qxh5 {[%clk
00:44:15] [%emt 00:01:46]} 19...g6 {[%clk 00:50:52] [%emt 00:02:56]} 20.Qf3 
{[%clk 00:43:23] [%emt 00:01:21]} 20...Qe7 {[%clk 00:45:58] [%emt 00:05:25]} 
21.h4 {[%clk 00:38:38] [%emt 00:05:15]} 21...Kg7 {[%clk 00:38:49] [%emt
00:07:40]} 22.Rfe1 {[%clk 00:31:59] [%emt 00:07:08]} 22...Bf5 {[%clk 00:33:33]
[%emt 00:05:46]} 23.Nc4 {[%clk 00:28:12] [%emt 00:04:17]} 23...Bxd3 {[%clk
00:25:18] [%emt 00:08:46]} 24.Qxd3 {[%clk 00:28:34] [%emt 00:00:07]} 24...Nb4 
{[%clk 00:25:33] [%emt 00:00:15]} 25.Qd2 {[%clk 00:28:55] [%emt 00:00:09]} 
25...Qd7 {[%clk 00:22:52] [%emt 00:03:11]} 26.Nxa5 {[%clk 00:27:04] [%emt
00:02:21]} 26...Rxa5 {[%clk 00:19:59] [%emt 00:03:23]} 27.Qxb4 {[%clk 00:27:27]
[%emt 00:00:06]} 27...Rxa4 {[%clk 00:20:24] [%emt 00:00:05]} 28.Qb3 {[%clk
00:21:49] [%emt 00:06:07]} 28...d3 {[%clk 00:16:34] [%emt 00:04:21]} 29.exd3 
{[%clk 00:20:44] [%emt 00:01:35]} 29...Rxe1+ {[%clk 00:16:36] [%emt 00:00:28]} 
30.Rxe1 {[%clk 00:21:09] [%emt 00:00:05]} 30...Ra6 {[%clk 00:10:29] [%emt
00:06:37]} 31.Qxb7 {[%clk 00:09:51]} 31...Qxb7 {[%clk 00:10:50] [%emt 00:11:58]} 
32.Bxb7 {[%clk 00:10:16] [%emt 00:00:04]} 32...Rb6 {[%clk 00:11:13] [%emt
00:00:08]} 33.Bf3 {[%clk 00:10:22] [%emt 00:00:23]} 33...Rxb2 {[%clk 00:11:36]
[%emt 00:00:07]} 34.Be2 {[%clk 00:10:47] [%emt 00:00:04]} 34...Bd4 {[%clk
00:07:42] [%emt 00:04:26]} 35.Kg2 {[%clk 00:11:11] [%emt 00:00:06]} 35...Rb6 
{[%clk 00:07:53] [%emt 00:00:18]} 36.Rc1 {[%clk 00:11:21] [%emt 00:00:20]} 
36...f5 {[%clk 00:06:10] [%emt 00:02:14]} 37.Rc7+ {[%clk 00:09:48] [%emt
00:02:02]} 37...Kf6 {[%clk 00:05:36] [%emt 00:01:04]} 38.Rd7 {[%clk 00:10:11]
[%emt 00:00:07]} 38...Bc5 {[%clk 00:04:03] [%emt 00:02:04]} 39.Rc7 {[%clk
00:04:38] [%emt 00:06:03]} 39...Bd4 {[%clk 00:04:19] [%emt 00:00:13]} 40.Rc4 
{[%clk 00:04:49] [%emt 00:00:18]} 40...Rd6 {[%clk 00:04:42] [%emt 00:00:08]} 
41.Bd1 {[%clk 00:03:47] [%emt 00:01:32]} 41...Bb6 {[%clk 00:48:48] [%emt
00:06:25]} 42.Bb3 {[%clk 00:53:37] [%emt 00:00:38]} 42...g5 {[%clk 00:46:17]
[%emt 00:03:02]} 43.h5 {[%clk 00:35:48] [%emt 00:18:19]} 43...Kg7 {[%clk
00:36:14] [%emt 00:10:34]} 44.Rb4 {[%clk 00:35:01] [%emt 00:01:16]} 44...Rf6 
{[%clk 00:33:15] [%emt 00:03:29]} 45.Ba4 {[%clk 00:33:14] [%emt 00:02:17]} 
45...g4 {[%clk 00:28:12] [%emt 00:05:33]} 46.Bd7 {[%clk 00:32:31] [%emt
00:01:13]} 46...Kh6 {[%clk 00:23:54] [%emt 00:04:49]} 47.Bxf5 {[%clk 00:29:48]
[%emt 00:03:12]} 47...Bxf2 {[%clk 00:22:41] [%emt 00:01:43]} 48.Bxg4 {[%clk
00:29:29] [%emt 00:00:49]} 48...Bc5 {[%clk 00:21:59] [%emt 00:01:13]} 49.Rc4 
{[%clk 00:29:14] [%emt 00:00:45]} 49...Be3 {[%clk 00:21:19] [%emt 00:01:10]} 
50.Re4 {[%clk 00:29:20] [%emt 00:00:22]} 50...Bb6 {[%clk 00:21:18] [%emt
00:00:33]} 51.d4 {[%clk 00:29:07] [%emt 00:00:43]} 51...Kg5 {[%clk 00:19:14]
[%emt 00:02:33]} 52.Bf3 {[%clk 00:28:58] [%emt 00:00:38]} 52...Rd6 {[%clk
00:18:25] [%emt 00:01:20]} 53.d5 {[%clk 00:29:12] [%emt 00:00:16]} 53...Kf5 
{[%clk 00:17:36] [%emt 00:01:20]} 54.g4+ {[%clk 00:28:53] [%emt 00:00:48]} 1-0

[Event "FIDE Grand Swiss 2023"]
[Site "Villa Marina, Douglas, Isle of Man"]
[Date "2023.10.25"]
[Round "1.57"]
[White "Kolbus, Dietmar"]
[Black "Najer, Evgeniy"]
[Result "0-1"]
[WhiteElo "2225"]
[BlackElo "2648"]
[EventDate "2023.10.25"]
[ECO "E12"]
[PlyCount "130"]
[BlackFideId "4118987"]
[TimeControl "40/100 + 20/50 + 15 + 30s/move"]
[WhiteFideId "4610628"]

1.d4 {[%clk 01:40:56] [%emt 00:00:02]} 1...Nf6 {[%clk 01:40:43] [%emt 00:00:18]} 
2.c4 {[%clk 01:41:21] [%emt 00:00:05]} 2...e6 {[%clk 01:40:56] [%emt 00:00:18]} 
3.Nf3 {[%clk 01:41:39] [%emt 00:00:11]} 3...b6 {[%clk 01:38:25] [%emt 00:03:01]} 
4.a3 {[%clk 01:40:36] [%emt 00:01:33]} 4...Ba6 {[%clk 01:31:37] [%emt 00:07:19]} 
5.e3 {[%clk 01:38:02] [%emt 00:03:03]} 5...d5 {[%clk 01:28:24] [%emt 00:03:42]} 
6.Nbd2 {[%clk 01:34:10] [%emt 00:04:22]} 6...Be7 {[%clk 01:16:41] [%emt
00:12:13]} 7.b4 {[%clk 01:24:01] [%emt 00:10:39]} 7...O-O {[%clk 01:15:58] [%emt
00:01:14]} 8.Bb2 {[%clk 01:20:07] [%emt 00:04:24]} 8...Nbd7 {[%clk 01:01:41]
[%emt 00:14:47]} 9.b5 {[%clk 01:11:11] [%emt 00:09:26]} 9...Bb7 {[%clk 01:00:20]
[%emt 00:01:51]} 10.Qb3 {[%clk 01:10:38] [%emt 00:01:02]} 10...c5 {[%clk
00:51:07] [%emt 00:09:44]} 11.bxc6 {[%clk 01:10:40] [%emt 00:00:28]} 11...Bxc6 
{[%clk 00:51:32] [%emt 00:00:04]} 12.a4 {[%clk 01:05:46] [%emt 00:05:25]} 
12...Rc8 {[%clk 00:40:41] [%emt 00:11:21]} 13.Be2 {[%clk 01:05:00] [%emt
00:01:15]} 13...dxc4 {[%clk 00:39:37] [%emt 00:01:35]} 14.Bxc4 {[%clk 01:04:57]
[%emt 00:00:32]} 14...Qc7 {[%clk 00:32:53] [%emt 00:07:16]} 15.O-O {[%clk
00:53:23] [%emt 00:12:02]} 15...Qb7 {[%clk 00:31:03] [%emt 00:02:21]} 16.Rfc1 
{[%clk 00:52:06] [%emt 00:01:46]} 16...h6 {[%clk 00:30:00] [%emt 00:01:34]} 
17.Ba3 {[%clk 00:48:18] [%emt 00:04:18]} 17...Bxa3 {[%clk 00:30:00] [%emt
00:00:31]} 18.Qxa3 {[%clk 00:48:07] [%emt 00:00:40]} 18...Rc7 {[%clk 00:25:45]
[%emt 00:04:45]} 19.Bb5 {[%clk 00:40:18] [%emt 00:08:19]} 19...Rfc8 {[%clk
00:24:22] [%emt 00:01:53]} 20.Be2 {[%clk 00:27:11] [%emt 00:13:36]} 20...Ne4 
{[%clk 00:18:31] [%emt 00:06:21]} 21.Nxe4 {[%clk 00:25:36] [%emt 00:02:05]} 
21...Bxe4 {[%clk 00:18:58] [%emt 00:00:03]} 22.Ne1 {[%clk 00:20:56] [%emt
00:05:09]} 22...Nf6 {[%clk 00:12:43] [%emt 00:06:47]} 23.f3 {[%clk 00:19:29]
[%emt 00:01:57]} 23...Rxc1 {[%clk 00:11:43] [%emt 00:01:30]} 24.Rxc1 {[%clk
00:19:47] [%emt 00:00:12]} 24...Rxc1 {[%clk 00:12:10] [%emt 00:00:03]} 25.Qxc1 
{[%clk 00:20:03] [%emt 00:00:14]} 25...Bc6 {[%clk 00:12:37] [%emt 00:00:03]} 
26.Qa3 {[%clk 00:17:28] [%emt 00:03:04]} 26...Nd5 {[%clk 00:10:46] [%emt
00:02:22]} 27.e4 {[%clk 00:10:30] [%emt 00:07:28]} 27...Nf4 {[%clk 00:10:35]
[%emt 00:00:41]} 28.Bc4 {[%clk 00:07:35] [%emt 00:03:24]} 28...Qd7 {[%clk
00:10:29] [%emt 00:00:37]} 29.Qe3 {[%clk 00:05:33] [%emt 00:02:31]} 29...Bxa4 
{[%clk 00:10:18] [%emt 00:00:42]} 30.g3 {[%clk 00:05:36] [%emt 00:00:26]} 
30...Ng6 {[%clk 00:10:12] [%emt 00:00:36]} 31.d5 {[%clk 00:05:31] [%emt
00:00:35]} 31...exd5 {[%clk 00:07:59] [%emt 00:02:44]} 32.Bxd5 {[%clk 00:05:55]
[%emt 00:00:05]} 32...Ne7 {[%clk 00:07:42] [%emt 00:00:48]} 33.Ba2 {[%clk
00:06:10] [%emt 00:00:15]} 33...Nc6 {[%clk 00:06:03] [%emt 00:02:08]} 34.Nd3 
{[%clk 00:05:45] [%emt 00:00:56]} 34...Qd4 {[%clk 00:05:43] [%emt 00:00:49]} 
35.Kf2 {[%clk 00:05:08] [%emt 00:01:07]} 35...Kf8 {[%clk 00:06:05] [%emt
00:00:10]} 36.Qxd4 {[%clk 00:05:18] [%emt 00:00:19]} 36...Nxd4 {[%clk 00:06:31]
[%emt 00:00:03]} 37.Ke3 {[%clk 00:05:37] [%emt 00:00:11]} 37...Bb3 {[%clk
00:04:31] [%emt 00:02:31]} 38.Bb1 {[%clk 00:05:31] [%emt 00:00:35]} 38...Nb5 
{[%clk 00:04:13] [%emt 00:00:48]} 39.Ne5 {[%clk 00:05:03] [%emt 00:00:58]} 
39...a5 {[%clk 00:01:48] [%emt 00:02:56]} 40.Nd7+ {[%clk 00:02:14] [%emt
00:03:19]} 40...Ke8 {[%clk 00:00:41] [%emt 00:01:37]} 41.Nxb6 {[%clk 00:02:35]
[%emt 00:00:09]} 41...a4 {[%clk 00:00:52] [%emt 00:00:19]} 42.Nxa4 {[%clk
00:48:31] [%emt 00:04:34]} 42...Bxa4 {[%clk 00:50:29] [%emt 00:00:53]} 43.Bd3 
{[%clk 00:48:55] [%emt 00:00:06]} 43...Na3 {[%clk 00:49:12] [%emt 00:01:46]} 
44.Be2 {[%clk 00:48:38] [%emt 00:00:47]} 44...Nc2+ {[%clk 00:48:32] [%emt
00:01:11]} 45.Kf2 {[%clk 00:48:53] [%emt 00:00:14]} 45...Nd4 {[%clk 00:48:56]
[%emt 00:00:06]} 46.Bc4 {[%clk 00:49:07] [%emt 00:00:17]} 46...Bb5 {[%clk
00:46:55] [%emt 00:02:31]} 47.Bd5 {[%clk 00:49:16] [%emt 00:00:20]} 47...Ke7 
{[%clk 00:45:44] [%emt 00:01:41]} 48.Ke3 {[%clk 00:49:37] [%emt 00:00:08]} 
48...Nc2+ {[%clk 00:46:06] [%emt 00:00:09]} 49.Kd2 {[%clk 00:49:03] [%emt
00:01:03]} 49...Nb4 {[%clk 00:46:33] [%emt 00:00:04]} 50.Bb3 {[%clk 00:49:17]
[%emt 00:00:17]} 50...Nc6 {[%clk 00:41:02] [%emt 00:06:01]} 51.Ke3 {[%clk
00:49:26] [%emt 00:00:19]} 51...Ne5 {[%clk 00:40:57] [%emt 00:00:36]} 52.Bd1 
{[%clk 00:49:21] [%emt 00:00:34]} 52...Nc4+ {[%clk 00:41:16] [%emt 00:00:12]} 
53.Kf2 {[%clk 00:48:02] [%emt 00:01:49]} 53...Nb2 {[%clk 00:40:08] [%emt
00:01:38]} 54.Bb3 {[%clk 00:47:23] [%emt 00:01:07]} 54...Ba4 {[%clk 00:39:55]
[%emt 00:00:45]} 55.Bd5 {[%clk 00:47:35] [%emt 00:00:18]} 55...Nd1+ {[%clk
00:39:38] [%emt 00:00:47]} 56.Ke1 {[%clk 00:47:16] [%emt 00:00:48]} 56...Ne3 
{[%clk 00:38:58] [%emt 00:01:10]} 57.Bb7 {[%clk 00:45:28] [%emt 00:02:19]} 
57...Kd6 {[%clk 00:33:57] [%emt 00:05:31]} 58.Ke2 {[%clk 00:41:39] [%emt
00:04:19]} 58...Nc2 {[%clk 00:30:02] [%emt 00:04:26]} 59.Kd2 {[%clk 00:41:09]
[%emt 00:01:00]} 59...Ke5 {[%clk 00:24:06] [%emt 00:06:26]} 60.Bd5 {[%clk
00:40:53] [%emt 00:00:45]} 60...f5 {[%clk 00:21:30] [%emt 00:03:07]} 61.Bb7 
{[%clk 00:40:35] [%emt 00:00:48]} 61...f4 {[%clk 00:18:52] [%emt 00:03:07]} 
62.Bc8 {[%clk 00:39:32] [%emt 00:01:33]} 62...Nd4 {[%clk 00:18:42] [%emt
00:00:40]} 63.Bg4 {[%clk 00:39:25] [%emt 00:00:37]} 63...Be8 {[%clk 00:18:02]
[%emt 00:01:10]} 64.Kd3 {[%clk 00:36:45] [%emt 00:03:10]} 64...g5 {[%clk
00:17:37] [%emt 00:00:55]} 65.gxf4+ {[%clk 00:36:45] [%emt 00:00:30]} 65...gxf4 
{[%clk 00:17:40] [%emt 00:00:28]} 0-1

[Event "FIDE Grand Swiss 2023"]
[Site "Villa Marina, Douglas, Isle of Man"]
[Date "2023.10.26"]
[Round "2.50"]
[White "Parligras, Mircea-Emilian"]
[Black "Warmerdam, Max"]
[Result "1/2-1/2"]
[WhiteElo "2561"]
[BlackElo "2636"]
[EventDate "2023.10.25"]
[ECO "E04"]
[PlyCount "60"]
[BlackFideId "1048104"]
[TimeControl "40/100 + 20/50 + 15 + 30s/move"]
[WhiteFideId "1204297"]

1.d4 {[%clk 01:40:56] [%emt 00:00:02]} 1...Nf6 {[%clk 01:40:55] [%emt 00:00:05]} 
2.c4 {[%clk 01:41:20] [%emt 00:00:06]} 2...e6 {[%clk 01:41:20] [%emt 00:00:04]} 
3.Nf3 {[%clk 01:41:39] [%emt 00:00:11]} 3...d5 {[%clk 01:41:40] [%emt 00:00:09]} 
4.g3 {[%clk 01:41:56] [%emt 00:00:13]} 4...dxc4 {[%clk 01:37:13] [%emt
00:04:58]} 5.Bg2 {[%clk 01:42:07] [%emt 00:00:19]} 5...Bb4+ {[%clk 01:37:36]
[%emt 00:00:07]} 6.Bd2 {[%clk 01:36:43] [%emt 00:05:54]} 6...a5 {[%clk 01:37:54]
[%emt 00:00:12]} 7.a3 {[%clk 01:34:15] [%emt 00:02:59]} 7...Be7 {[%clk 01:27:32]
[%emt 00:10:51]} 8.Qa4+ {[%clk 01:23:40] [%emt 00:11:06]} 8...Nbd7 {[%clk
01:27:55] [%emt 00:00:06]} 9.Qxc4 {[%clk 01:22:13] [%emt 00:01:58]} 9...O-O 
{[%clk 01:26:43] [%emt 00:01:42]} 10.Nc3 {[%clk 01:17:03] [%emt 00:05:40]} 
10...b6 {[%clk 01:16:23] [%emt 00:10:49]} 11.Ne5 {[%clk 01:07:00] [%emt
00:10:33]} 11...Ba6 {[%clk 01:16:09] [%emt 00:00:44]} 12.Qa4 {[%clk 01:03:48]
[%emt 00:03:42]} 12...Nxe5 {[%clk 01:15:52] [%emt 00:00:48]} 13.dxe5 {[%clk
01:04:11] [%emt 00:00:06]} 13...Nd5 {[%clk 01:16:08] [%emt 00:00:14]} 14.Qc6 
{[%clk 00:59:05] [%emt 00:05:37]} 14...Rb8 {[%clk 01:06:17] [%emt 00:10:21]} 
15.Nxd5 {[%clk 00:58:58] [%emt 00:00:37]} 15...exd5 {[%clk 01:06:42] [%emt
00:00:05]} 16.Qxd5 {[%clk 00:56:00] [%emt 00:03:28]} 16...Qc8 {[%clk 01:02:58]
[%emt 00:04:14]} 17.Qb3 {[%clk 00:46:17] [%emt 00:10:12]} 17...Qf5 {[%clk
00:59:36] [%emt 00:03:52]} 18.Bf3 {[%clk 00:41:59] [%emt 00:04:49]} 18...Bc5 
{[%clk 00:55:11] [%emt 00:04:55]} 19.Bc3 {[%clk 00:37:51] [%emt 00:04:38]} 
19...Bb7 {[%clk 00:42:40] [%emt 00:13:01]} 20.Qd1 {[%clk 00:22:54] [%emt
00:15:28]} 20...Be4 {[%clk 00:34:54] [%emt 00:08:15]} 21.O-O {[%clk 00:21:24]
[%emt 00:02:01]} 21...Rbd8 {[%clk 00:34:40] [%emt 00:00:45]} 22.Qc1 {[%clk
00:17:06] [%emt 00:04:48]} 22...Bxf3 {[%clk 00:34:20] [%emt 00:00:49]} 23.exf3 
{[%clk 00:17:31] [%emt 00:00:05]} 23...Qxf3 {[%clk 00:34:24] [%emt 00:00:26]} 
24.Bxa5 {[%clk 00:17:00] [%emt 00:01:02]} 24...Rd4 {[%clk 00:20:55] [%emt
00:13:59]} 25.Bc3 {[%clk 00:12:05] [%emt 00:05:26]} 25...Rg4 {[%clk 00:16:33]
[%emt 00:04:51]} 26.Qd1 {[%clk 00:12:24] [%emt 00:00:11]} 26...Rxg3+ {[%clk
00:16:56] [%emt 00:00:06]} 27.hxg3 {[%clk 00:12:51] [%emt 00:00:03]} 27...Qxg3+ 
{[%clk 00:17:21] [%emt 00:00:05]} 28.Kh1 {[%clk 00:13:16] [%emt 00:00:05]} 
28...Qh3+ {[%clk 00:17:47] [%emt 00:00:04]} 29.Kg1 {[%clk 00:13:42] [%emt
00:00:04]} 29...Qg3+ {[%clk 00:18:14] [%emt 00:00:03]} 30.Kh1 {[%clk 00:14:03]
[%emt 00:00:09]} 30...Qh3+ {[%clk 00:18:41] [%emt 00:00:03]} 1/2-1/2

[Event "FIDE Grand Swiss 2023"]
[Site "Villa Marina, Douglas, Isle of Man"]
[Date "2023.10.26"]
[Round "2.53"]
[White "Rodrigue-Lemieux, Shawn"]
[Black "Sargsyan, Shant"]
[Result "1/2-1/2"]
[WhiteElo "2488"]
[BlackElo "2631"]
[EventDate "2023.10.25"]
[ECO "B51"]
[PlyCount "108"]
[BlackFideId "13306766"]
[TimeControl "40/100 + 20/50 + 15 + 30s/move"]
[WhiteFideId "2620049"]

1.e4 {[%clk 01:40:57] [%emt 00:00:02]} 1...c5 {[%clk 01:39:22] [%emt 00:01:39]} 
2.Nf3 {[%clk 01:41:17] [%emt 00:00:09]} 2...d6 {[%clk 01:39:39] [%emt 00:00:13]} 
3.Bb5+ {[%clk 01:41:39] [%emt 00:00:08]} 3...Nd7 {[%clk 01:39:15] [%emt
00:00:54]} 4.Ba4 {[%clk 01:41:20] [%emt 00:00:49]} 4...Nf6 {[%clk 01:38:24]
[%emt 00:01:20]} 5.O-O {[%clk 01:40:56] [%emt 00:00:54]} 5...e6 {[%clk 01:38:09]
[%emt 00:00:45]} 6.Re1 {[%clk 01:40:50] [%emt 00:00:36]} 6...a6 {[%clk 01:37:33]
[%emt 00:01:07]} 7.c4 {[%clk 01:40:29] [%emt 00:00:50]} 7...Be7 {[%clk 01:37:39]
[%emt 00:00:24]} 8.Nc3 {[%clk 01:40:44] [%emt 00:00:15]} 8...O-O {[%clk
01:37:37] [%emt 00:00:32]} 9.d4 {[%clk 01:39:23] [%emt 00:01:51]} 9...cxd4 
{[%clk 01:37:02] [%emt 00:01:06]} 10.Nxd4 {[%clk 01:39:07] [%emt 00:00:45]} 
10...Ne5 {[%clk 01:37:05] [%emt 00:00:27]} 11.Qe2 {[%clk 01:38:27] [%emt
00:01:10]} 11...Qb6 {[%clk 01:35:34] [%emt 00:02:01]} 12.Rd1 {[%clk 01:34:33]
[%emt 00:04:24]} 12...Qc5 {[%clk 01:34:09] [%emt 00:01:54]} 13.Bb3 {[%clk
01:33:14] [%emt 00:01:49]} 13...Bd7 {[%clk 01:34:29] [%emt 00:00:11]} 14.Be3 
{[%clk 01:22:22] [%emt 00:11:22]} 14...Qc7 {[%clk 01:34:03] [%emt 00:00:56]} 
15.h3 {[%clk 01:22:37] [%emt 00:00:15]} 15...Rfc8 {[%clk 01:31:50] [%emt
00:02:43]} 16.Rac1 {[%clk 01:17:26] [%emt 00:05:41]} 16...Nxc4 {[%clk 01:24:38]
[%emt 00:07:42]} 17.Bxc4 {[%clk 00:41:55] [%emt 00:36:00]} 17...Qxc4 {[%clk
01:24:37] [%emt 00:00:31]} 18.Qf3 {[%clk 00:36:22] [%emt 00:06:03]} 18...Qc7 
{[%clk 01:15:03] [%emt 00:10:04]} 19.Nd5 {[%clk 00:34:35] [%emt 00:02:17]} 
19...Qd8 {[%clk 01:14:58] [%emt 00:00:35]} 20.Nxe7+ {[%clk 00:34:52] [%emt
00:00:13]} 20...Qxe7 {[%clk 01:15:19] [%emt 00:00:09]} 21.Ne2 {[%clk 00:31:01]
[%emt 00:04:21]} 21...Rxc1 {[%clk 01:05:38] [%emt 00:10:12]} 22.Bxc1 {[%clk
00:30:44] [%emt 00:00:47]} 22...Bc6 {[%clk 01:05:03] [%emt 00:01:06]} 23.Nc3 
{[%clk 00:30:54] [%emt 00:00:19]} 23...Rd8 {[%clk 01:00:15] [%emt 00:05:19]} 
24.Qe3 {[%clk 00:27:56] [%emt 00:03:27]} 24...e5 {[%clk 00:56:29] [%emt
00:04:17]} 25.b3 {[%clk 00:23:29] [%emt 00:04:56]} 25...Qe6 {[%clk 00:50:08]
[%emt 00:06:51]} 26.Bb2 {[%clk 00:21:11] [%emt 00:02:48]} 26...h6 {[%clk
00:49:37] [%emt 00:01:03]} 27.f3 {[%clk 00:19:30] [%emt 00:02:09]} 27...Rd7 
{[%clk 00:46:07] [%emt 00:04:00]} 28.Rd2 {[%clk 00:16:55] [%emt 00:03:06]} 
28...Nh5 {[%clk 00:44:37] [%emt 00:02:01]} 29.Ne2 {[%clk 00:16:21] [%emt
00:01:03]} 29...f5 {[%clk 00:41:53] [%emt 00:03:15]} 30.exf5 {[%clk 00:15:52]
[%emt 00:00:59]} 30...Qxf5 {[%clk 00:42:11] [%emt 00:00:13]} 31.Kh2 {[%clk
00:16:04] [%emt 00:00:17]} 31...Qg6 {[%clk 00:32:34] [%emt 00:10:07]} 32.Qf2 
{[%clk 00:13:16] [%emt 00:03:17]} 32...Rf7 {[%clk 00:23:26] [%emt 00:09:38]} 
33.Qh4 {[%clk 00:12:39] [%emt 00:01:07]} 33...Bxf3 {[%clk 00:22:17] [%emt
00:01:40]} 34.gxf3 {[%clk 00:11:30] [%emt 00:01:38]} 34...Rxf3 {[%clk 00:22:43]
[%emt 00:00:04]} 35.Qg4 {[%clk 00:04:57] [%emt 00:07:04]} 35...Rf2+ {[%clk
00:17:32] [%emt 00:05:41]} 36.Kg1 {[%clk 00:05:13] [%emt 00:00:13]} 36...Qf7 
{[%clk 00:17:55] [%emt 00:00:08]} 37.Kh1 {[%clk 00:01:30] [%emt 00:04:13]} 
37...b5 {[%clk 00:12:52] [%emt 00:05:34]} 38.Bc3 {[%clk 00:01:12] [%emt
00:00:47]} 38...Nf6 {[%clk 00:11:29] [%emt 00:01:53]} 39.Qc8+ {[%clk 00:01:29]
[%emt 00:00:13]} 39...Kh7 {[%clk 00:11:51] [%emt 00:00:09]} 40.Qc6 {[%clk
00:01:03] [%emt 00:00:56]} 40...d5 {[%clk 00:01:30] [%emt 00:10:51]} 41.Ng1 
{[%clk 00:36:35] [%emt 00:14:57]} 41...Ne4 {[%clk 00:34:07] [%emt 00:17:54]} 
42.Rxf2 {[%clk 00:36:46] [%emt 00:00:18]} 42...Nxf2+ {[%clk 00:34:32] [%emt
00:00:05]} 43.Kg2 {[%clk 00:37:09] [%emt 00:00:06]} 43...Nd3 {[%clk 00:34:35]
[%emt 00:00:27]} 44.Kh1 {[%clk 00:37:02] [%emt 00:00:36]} 44...Nf2+ {[%clk
00:28:01] [%emt 00:07:05]} 45.Kg2 {[%clk 00:37:27] [%emt 00:00:05]} 45...Nd3 
{[%clk 00:28:00] [%emt 00:00:32]} 46.Kh1 {[%clk 00:37:55] [%emt 00:00:01]} 
46...b4 {[%clk 00:26:58] [%emt 00:01:33]} 47.Bd2 {[%clk 00:34:25] [%emt
00:03:58]} 47...a5 {[%clk 00:24:35] [%emt 00:02:54]} 48.Qb5 {[%clk 00:32:18]
[%emt 00:02:36]} 48...Nf2+ {[%clk 00:17:21] [%emt 00:07:46]} 49.Kg2 {[%clk
00:31:23] [%emt 00:01:24]} 49...Ne4 {[%clk 00:17:39] [%emt 00:00:12]} 50.Be1 
{[%clk 00:30:56] [%emt 00:00:57]} 50...Qg6+ {[%clk 00:12:10] [%emt 00:06:00]} 
51.Kh2 {[%clk 00:30:05] [%emt 00:01:20]} 51...Nf6 {[%clk 00:09:11] [%emt
00:03:29]} 52.Qe2 {[%clk 00:25:23] [%emt 00:05:11]} 52...Qf5 {[%clk 00:09:23]
[%emt 00:00:19]} 53.Nf3 {[%clk 00:20:53] [%emt 00:04:59]} 53...e4 {[%clk
00:08:57] [%emt 00:00:57]} 54.Nh4 {[%clk 00:21:13] [%emt 00:00:09]} 54...Qe6 
{[%clk 00:03:30] [%emt 00:05:57]} 1/2-1/2